[Event "3rd Rio Open 2024"]
[Site "Rio de Janeiro"]
[Date "2024.04.27"]
[Round "7.3"]
[White "Matsuura, Everaldo"]
[Black "Viana, Dirceu"]
[Result "1-0"]
[ECO "A25"]
[WhiteElo "2380"]
[BlackElo "2172"]
[Annotator "TA"]
[PlyCount "75"]
[EventDate "2024.04.12"]
[EventType "swiss"]
[EventCountry "BRA"]
[SourceTitle "playchess.com"]
[Source "ChessBase"]
[SourceQuality "1"]
[TimeControl "5400+30"]

{[%evp 10,75,11,8,33,33,21,29,15,29,27,29,45,12,13,0,0,0,0,-2,0,-19,33,18,40,31,29,34,33,37,34,30,41,31,39,31,27,23,33,25,42,-2081,-470,-761,860,21,38,21,25,27,29,21,15,0,88,90,296,289,297,297,290,283,395,394,388,370,29987,29978]} 1. c4 {[%emt 0:02:59]} e5 {[%emt 0:01:12]} 2. Nc3 {[%emt 0:00:26]} Nc6 {[%emt 0:00:07]} 3. g3 {[%emt 0:00:12]} g6 {[%emt 0:00:11]} 4. Bg2 {[%emt 0:00:08]} Bg7 {[%emt 0:00:17]} 5. d3 {[%emt 0:00:31]} d6 {[%emt 0:03:45]} 6. Rb1 {[%emt 0:00:18]} Nh6 {[%emt 0:02:23]} 7. b4 {[%emt 0:01:22]} O-O {[%emt 0:01:49]} 8. b5 {[%emt 0:04:10]} Nd4 {[%emt 0:02:48] White has an edge.} 9. e3 {[%emt 0:03:22]} Ne6 {[%emt 0:00:24]} 10. Nge2 {[%emt 0:01:22]} f5 {[%emt 0:09:32][%cal Of5f4]} 11. Nd5 {[%emt 0:04:23]} Bd7 {[%emt 0:09:12]} 12. O-O {[%emt 0:01:45]} c6 {[%emt 0:10:00]} 13. bxc6 {[%emt 0:01:55]} bxc6 {[%emt 0:00:14]} 14. Nb4 {[%emt 0:00:40]} Rc8 {[%emt 0:03:01]} 15. d4 {[%emt 0:24:40]} a5 {[%emt 0:11:18] [#]} (15... f4 $11 16. gxf4 exf4 17. exf4 Kh8) 16. Nxc6 $1 $14 {[%emt 0:04:03]} Bxc6 {[%emt 0:00:05]} 17. d5 {[%emt 0:04:58]} Bd7 {[%emt 0:05:22]} 18. dxe6 {[%emt 0:00:36]} Bxe6 {[%emt 0:00:02][%cal Oe5e4]} 19. Bd5 {[%emt 0:01:38]} Bxd5 {[%emt 0:05:49]} 20. Qxd5+ {[%emt 0:00:41]} Nf7 {[%emt 0:00:51]} 21. Ba3 $1 $36 {[%emt 0:02:33][%mdl 2048] Repels Rc5. White has the initiative.} Qc7 {[%emt 0:03:25]} 22. Rfc1 {[%emt 0:08:53]} Qc6 {[%emt 0:04:53]} 23. Rb5 {[%emt 0:01:06]} (23. Qxa5 $2 Ra8 24. Qb4 Ng5 $19) 23... a4 {[%emt 0:00:41]} (23... Qxd5 {simplifies} 24. cxd5 Rb8 25. Rcb1 Ra8) 24. Ra5 {[%emt 0:07:11]} Qxd5 {[%emt 0:02:55]} 25. Rb5 {[%emt 0:23:08][%mdl 8192] [#]} (25. cxd5 $14 h6 26. Kg2 (26. Rxa4 Ra8 $11)) 25... Qc5 26. Rxc5 {[%emt 0:00:00] [#]} (26. Bxc5 $142 Rxc5 27. Kf1) 26... Rc6 $4 {[%emt 0:01:11][%mdl 8192]} 27. Ra5 $2 {[%emt 0:00:00]} (27. Rxc6 $18 Rd8 28. Ra6) 27... Rfc8 {[%emt 0:00:05]} 28. Rxa4 {[%emt 0:00:00]} Ng5 {[%emt 0:00:51]} 29. Nc3 {[%emt 0:00:00][%cal Be2c3,Bc3b5,Bb5c7][%mdl 32] And now Nd5 would win.} Rxc4 {[%emt 0:04:09]} 30. Rxc4 {[%emt 0:00:00]} Rxc4 {[%emt 0:00:02]} 31. Nb5 {[%emt 0:00:00]} (31. Bxd6 $2 Ne4 32. Bxe5 Bxe5 $19 (32... Nxc3 $2 33. Rxc3 Rxc3 34. Bxc3 $19)) 31... Rxc1+ {[%emt 0:08:52]} (31... Ra4 $1 $11 {remains equal.}) 32. Bxc1 $11 {[%emt 0:00:00][%cal Oa2a4][%mdl 4096] Endgame. Strongly threatening a4! KBN-KBN} d5 $2 {[%emt 0:00:05]} (32... Kf7 $16 {keeps fighting.}) 33. a4 $18 {[%emt 0:00:00][%cal Ba2a4,Ba4a5,Ba5a6][%mdl 32]} Ne6 {[%emt 0:00:57]} 34. a5 {[%emt 0:00:00] Hoping for a6.} Nc5 {[%emt 0:04:41]} 35. Nc7 {[%emt 0:00:00] Dodges Na6} d4 {[%emt 0:00:07]} ({Wrong is} 35... Nb3 $2 36. a6 Nxc1 37. a7 $18 (37. Nxd5 Bf8 $18)) 36. exd4 {[%emt 0:00:00]} (36. a6 Nxa6 37. Nxa6 dxe3 38. Bxe3 Kf8 $18) 36... exd4 {[%emt 0:00:26]} 37. a6 {[%emt 0:00:00]} Na4 $2 {[%emt 0:01:39]} (37... Nxa6 $18 38. Nxa6 Bf8) 38. Nd5 {[%emt 0:00:00] Quite a comeback for White.   Weighted Error Value: White=0.56/Black=0.69.  Loses game:     	White=1     	Black=1      Missed win:     	White=1     	---        Mistake:       	White=1     	Black=4      Inaccurate:     	White=1     	Black=1      OK:         	White=12    	Black=8      Best:        	White=3     	Black=2      Strong:       	White=1     	---} 1-0

[Event "3rd Rio Open 2024"]
[Site "Rio de Janeiro"]
[Date "2024.04.27"]
[Round "7.4"]
[White "De Siqueira, Luigy Lira"]
[Black "Rangel, Daniel"]
[Result "1/2-1/2"]
[ECO "C45"]
[WhiteElo "2274"]
[BlackElo "2160"]
[Annotator "TA"]
[PlyCount "107"]
[EventDate "2024.04.12"]
[EventType "swiss"]
[EventCountry "BRA"]
[SourceTitle "playchess.com"]
[Source "ChessBase"]
[SourceQuality "1"]
[TimeControl "5400+30"]

{[%evp 19,107,26,12,12,19,0,64,0,0,0,0,0,0,0,0,0,0,0,52,44,45,50,52,53,43,12,16,17,14,10,16,33,89,77,83,103,99,90,89,85,143,117,130,131,148,18,25,26,29,12,25,0,0,0,0,0,0,0,0,0,0,0,0,0,0,0,0,0,0,0,0,0,0,0,0,0,0,0,0,0,0,0,0,0,0,0,0,0,0,0]} 1. e4 {[%emt 0:15:29]} e5 {[%emt 0:00:07]} 2. Nf3 {[%emt 0:00:40]} Nc6 {[%emt 0:00:06]} 3. d4 {[%emt 0:00:09]} exd4 {[%emt 0:00:05]} 4. Nxd4 {[%emt 0:00:04]} Nf6 {[%emt 0:00:06]} 5. Nxc6 {[%emt 0:00:06]} bxc6 {[%emt 0:00:11]} 6. e5 {[%emt 0:00:23]} Qe7 {[%emt 0:00:19]} 7. Qe2 {[%emt 0:00:07]} Nd5 {[%emt 0:00:30]} 8. c4 {[%emt 0:00:09]} Ba6 {[%emt 0:00:47]} 9. b3 {[%emt 0:00:32]} O-O-O {[%emt 0:08:12]} 10. Bb2 {[%emt 0:04:36]} Qg5 {[%emt 0:17:27]} 11. h4 {[%emt 0:06:49]} Bb4+ {[%emt 0:04:34]} 12. Nd2 {[%emt 0:00:13]} (12. Kd1 {feels hotter.} Qh6 13. a3 Be7 14. g3) 12... Qg6 {[%emt 0:07:57]} ({Black should play} 12... Qf5 $11 13. O-O-O Nc3 14. Bxc3 Bxc3) 13. Qd3 {[%emt 0:07:36]} (13. O-O-O $14) 13... Qxd3 $11 {[%emt 0:05:41]} 14. Bxd3 {[%emt 0:00:29]} Nf4 {[%emt 0:00:29][%csl LRd3,LRg2]} 15. Bf1 {[%emt 0:00:15]} d5 {[%emt 0:10:25]} 16. O-O-O {[%emt 0:04:00]} dxc4 {[%emt 0:14:18]} 17. Nxc4 {[%emt 0:03:43][%cal Oc4d6]} Rxd1+ {[%emt 0:00:41]} 18. Kxd1 {[%emt 0:00:02]} Bxc4 {[%emt 0:01:35]} (18... Rd8+ $11 19. Nd6+ cxd6 20. Bxa6+ Kc7) 19. Bxc4 $14 {[%emt 0:00:39]} Rd8+ {[%emt 0:00:08]} 20. Kc1 {[%emt 0:00:17]} Nd3+ {[%emt 0:02:56]} 21. Bxd3 {[%emt 0:00:11]} Rxd3 {[%emt 0:00:01][%mdl 4096] Endgame. KRB-KRB} 22. h5 {[%emt 0:09:28]} Rd5 {[%emt 0:03:40]} 23. Rh3 {[%emt 0:21:46]} Kd7 {[%emt 0:04:42]} 24. Rg3 {[%emt 0:02:20]} Bd2+ {[%emt 0:01:47]} 25. Kc2 {[%emt 0:00:10]} Bh6 {[%emt 0:01:05] [#]} (25... g6 $14) 26. Bc3 $1 $16 {[%emt 0:00:37]} Ke6 {[%emt 0:00:40]} 27. Rg4 {[%emt 0:00:18]} f6 {[%emt 0:02:38]} 28. exf6 {[%emt 0:00:42]} gxf6 {[%emt 0:00:01]} 29. Re4+ {[%emt 0:01:03]} Kf7 {[%emt 0:03:39]} (29... Kd7 $142) 30. Ra4 {[%emt 0:00:20]} Rxh5 {[%emt 0:00:08]} 31. Rxa7 {[%emt 0:00:08] White is more active.} Bf4 {[%emt 0:00:05] [#]} 32. Ra6 {[%emt 0:01:04]} (32. Ba5 $1 $16) 32... Rh2 $11 {[%emt 0:03:10]} 33. Rxc6 {[%emt 0:00:50]} Bd6 {[%emt 0:00:01]} 34. Bd4 {[%emt 0:01:09][%cal Og2g3]} Rxg2 {[%emt 0:00:05]} 35. a4 {[%emt 0:00:21]} h5 {[%emt 0:01:18][%cal Bh7h5,Bh5h4,Bh4h3][%mdl 32] The position is equal.} 36. a5 {[%emt 0:01:30]} h4 {[%emt 0:00:33]} 37. Rc3 {[%emt 0:00:07]} c5 {[%emt 0:02:42]} 38. Bxc5 {[%emt 0:01:05]} Bxc5 {[%emt 0:00:11]} 39. Rxc5 {[%emt 0:00:01] aiming for Rh5.} Rxf2+ {[%emt 0:00:22] KR-KR} 40. Kc3 {[%emt 0:04:04] And now Rh5 would win.} h3 {[%emt 0:00:04]} 41. Rh5 {[%emt 0:00:43]} h2 {[%emt 0:00:10]} 42. b4 {[%emt 0:00:51]} Ke6 {[%emt 0:01:43]} 43. a6 {[%emt 0:04:14]} Kd6 {[%emt 0:00:34]} 44. b5 {[%emt 0:04:44]} Rf5 {[%emt 0:01:01]} 45. Rxh2 {[%emt 0:02:39] White threatens a7 and mate.} (45. Rxf5 $2 {too greedy.} h1=Q (45... h1=R $2 46. b6 $18) 46. Rxf6+ Kc5 47. Rf5+ Kb6 $19) 45... Rxb5 {[%emt 0:00:05]} 46. Ra2 {[%emt 0:00:14] a7 would kill now.} Rb8 {[%emt 0:00:06]} 47. Kc4 {[%emt 0:00:46]} Kc6 {[%emt 0:00:58]} 48. Rf2 {[%emt 0:01:30]} (48. a7 $5 Ra8 $8 49. Kd3 $11) 48... Kb6 {[%emt 0:00:10]} 49. Rxf6+ {[%emt 0:00:06]} Ka7 {[%emt 0:00:03]} 50. Kc5 {[%emt 0:06:11]} Rb1 {[%emt 0:00:15]} 51. Rf4 {[%emt 0:00:00]} Kxa6 {[%emt 0:00:21]} 52. Ra4+ {[%emt 0:00:00]} Kb7 {[%emt 0:00:06]} 53. Rb4+ {[%emt 0:00:00]} Rxb4 54. Kxb4 {Weighted Error Value: White=0.11 (very precise) /Black=0.09 (flawless) .  Mistake:       	White=2     	Black=4      Inaccurate:     	White=1     	---        OK:         	White=15    	Black=24     Best:        	White=2     	Black=7      Strong:       	White=1     	---} 1/2-1/2

[Event "3rd Rio Open 2024"]
[Site "Rio de Janeiro"]
[Date "2024.04.27"]
[Round "7.5"]
[White "Casalaspro, Mathias Andre"]
[Black "Abrantes, Tiago Garrido"]
[Result "1/2-1/2"]
[ECO "C97"]
[WhiteElo "2107"]
[BlackElo "2201"]
[Annotator "TA"]
[PlyCount "69"]
[EventDate "2024.04.12"]
[EventType "swiss"]
[EventCountry "BRA"]
[SourceTitle "playchess.com"]
[Source "ChessBase"]
[SourceQuality "1"]
[TimeControl "5400+30"]

{[%evp 23,69,27,38,33,41,27,41,15,14,14,29,0,0,0,2,0,0,0,9,5,21,22,14,2,14,-20,0,-70,-62,-70,-70,-70,-70,-70,-8,-9,-3,-12,0,0,0,0,0,0,0,0,0,0]} 1. e4 {[%emt 0:01:06]} e5 {[%emt 0:03:44]} 2. Nf3 {[%emt 0:00:04]} Nc6 {[%emt 0:00:32]} 3. Bb5 {[%emt 0:00:02]} a6 {[%emt 0:00:15]} 4. Ba4 {[%emt 0:00:04]} Nf6 {[%emt 0:00:13]} 5. O-O {[%emt 0:00:04]} Be7 {[%emt 0:00:12]} 6. Re1 {[%emt 0:00:03]} b5 {[%emt 0:00:13]} 7. Bb3 {[%emt 0:00:02]} d6 {[%emt 0:00:16]} 8. c3 {[%emt 0:00:03]} O-O {[%emt 0:00:12]} 9. h3 {[%emt 0:00:01]} Na5 {[%emt 0:03:18]} 10. Bc2 {[%emt 0:00:07]} c5 {[%emt 0:00:21]} 11. d4 {[%emt 0:00:25]} Qc7 {[%emt 0:00:28]} 12. d5 {[%emt 0:00:35]} Nc4 {[%emt 0:05:10]} 13. b3 {[%emt 0:02:13]} Nb6 {[%emt 0:00:11]} 14. Be3 {[%emt 0:07:40]} a5 {[%emt 0:02:08]} 15. Nbd2 {[%emt 0:02:31] White is slightly better.} a4 {[%emt 0:06:50]} 16. Bd3 {[%emt 0:02:27]} axb3 {[%emt 0:00:54]} 17. axb3 {[%emt 0:00:04] next Rxa8 is good for White.} Rxa1 {[%emt 0:00:39]} 18. Qxa1 {[%emt 0:00:06]} Bd7 {[%emt 0:00:10]} 19. Qb2 {[%emt 0:01:05]} Ra8 {[%emt 0:03:14]} 20. Ra1 {[%emt 0:00:35]} Qb7 {[%emt 0:02:24]} 21. Ne1 {[%emt 0:02:20]} Ra6 {[%emt 0:01:30]} 22. Nc2 {[%emt 0:02:44]} Ne8 {[%emt 0:01:38][%cal Of7f5]} 23. Bf1 {[%emt 0:12:43]} f5 {[%emt 0:03:10] [#] Threatens to win with ...Rxa1.} 24. f3 {[%emt 0:01:22]} Bh4 {[%emt 0:04:12]} 25. c4 {[%emt 0:02:19]} ({White should play} 25. Rxa6 $11 Qxa6 26. Be2) 25... f4 {[%emt 0:01:03]} 26. Bf2 {[%emt 0:01:15]} Bxf2+ {[%emt 0:00:40]} 27. Kxf2 {[%emt 0:00:07]} Rxa1 {[%emt 0:02:10]} 28. Qxa1 {[%emt 0:00:28]} bxc4 {[%emt 0:00:10]} ({Black should try} 28... b4 $1 $15) 29. Nxc4 $11 {[%emt 0:04:37] The position is equal.} Nxc4 {[%emt 0:00:38]} 30. Bxc4 {[%emt 0:00:17]} Bb5 {[%emt 0:05:31]} 31. Qc3 {[%emt 0:09:39]} Qa6 {[%emt 0:05:36]} 32. Bxb5 {[%emt 0:00:55]} Qxb5 {[%emt 0:02:21]} 33. b4 {[%emt 0:00:11]} cxb4 {[%emt 0:00:20]} 34. Nxb4 {[%emt 0:00:16]} h6 {[%emt 0:02:12]} 35. Nd3 {[%emt 0:02:47] Weighted Error Value: White=0.12 (very precise) /Black=0.10 (very precise) .  Mistake:       	White=1     	Black=1      Inaccurate:     	White=3     	---        OK:         	White=3     	Black=7} 1/2-1/2

[Event "3rd Rio Open 2024"]
[Site "Rio de Janeiro"]
[Date "2024.04.27"]
[Round "7.6"]
[White "Marra, Eduardo da Costa"]
[Black "Guimaraes, Wagner Peixoto"]
[Result "1-0"]
[ECO "B72"]
[WhiteElo "2184"]
[BlackElo "2140"]
[Annotator "TA"]
[PlyCount "65"]
[EventDate "2024.04.12"]
[EventType "swiss"]
[EventCountry "BRA"]
[SourceTitle "playchess.com"]
[Source "ChessBase"]
[SourceQuality "1"]
[TimeControl "5400+30"]

{[%evp 15,65,24,64,63,53,42,88,90,111,68,75,80,119,118,120,107,205,122,220,202,202,120,283,291,264,267,298,294,339,215,711,698,929,939,972,972,1558,1373,1484,1092,1050,933,1925,950,29959,29961,29980,29980,29980,29981,29997,317]} 1. e4 {[%emt 0:02:05]} c5 {[%emt 0:00:46]} 2. Nf3 {[%emt 0:00:42]} d6 {[%emt 0:00:08]} 3. d4 {[%emt 0:01:47]} cxd4 {[%emt 0:00:08]} 4. Nxd4 {[%emt 0:00:02]} Nf6 {[%emt 0:00:07]} 5. Nc3 {[%emt 0:00:12]} a6 {[%emt 0:00:07]} 6. h3 {[%emt 0:00:20]} g6 {[%emt 1:32:14]} 7. Be3 {[%emt 0:00:30]} Bg7 {[%emt 0:00:00]} 8. Qd2 {[%emt 0:00:13]} Nc6 {[%emt 0:00:00]} 9. O-O-O {[%emt 0:05:01]} Bd7 {[%emt 0:00:00]} 10. g4 {[%emt 0:05:47]} h6 {[%emt 0:02:00]} (10... Rc8 $14) 11. f4 {[%emt 1:19:21] White is better.} b5 {[%emt 0:00:30][%cal Bb7b5,Bb5b4][%mdl 32]} 12. Qg2 {[%emt 0:00:30][%cal Oe4e5] And now e5! would win.} Qc8 {[%emt 0:00:30]} 13. Kb1 {[%emt 0:00:30] White is more active.} b4 {[%emt 0:00:30]} 14. Nd5 {[%emt 0:00:30]} Nxd5 {[%emt 0:00:30]} 15. exd5 {[%emt 0:00:30]} Na5 {[%emt 0:00:30] [#]} (15... Nxd4 $16 {was called for.} 16. Bxd4 Bxd4 17. Rxd4 a5) 16. Qe4 {[%emt 0:00:30]} (16. f5 $1 $18 {[%cal Rf5g6]}) 16... O-O {[%emt 0:00:30]} (16... Nc4 $16) 17. f5 $18 {[%emt 0:00:30]} (17. Qxe7 Re8 18. Qxd6 Rxe3 19. Qxb4 Rb8 $19) 17... Nc4 {[%emt 0:00:30]} 18. Bc1 {[%emt 0:00:30]} ({White should play} 18. fxg6 $18 {[%cal Oe3h6] Bxh6! is the strong threat.} f5 19. Qxe7 Nxe3 20. Qxe3) 18... Rb8 $2 {[%emt 0:00:30] Black cannot hold the game after this.} (18... Ne5 $16 {might work better.}) 19. Bxc4 {[%emt 0:00:30]} (19. fxg6 $6 Na3+ 20. Ka1 (20. bxa3 $2 bxa3+ 21. Nb3 Qc3 $19) 20... Qc5 $18 (20... Bxd4 $2 21. Bd3 $18)) 19... Qxc4 {[%emt 0:00:30]} 20. b3 {[%emt 0:00:30]} (20. Qxe7 Bb5 $16) 20... Qc5 {[%emt 0:00:30]} 21. Bb2 {[%emt 0:00:30]} (21. fxg6 fxg6 22. Bb2 (22. Qxg6 Qxd5 23. Bxh6 Qf7 $16) (22. Qxe7 Bxd4 23. Rxd4 Qxd4 $14) 22... Rbc8) (21. Qxe7 Bxd4 22. Qxd7 Rbc8 23. Rxd4 (23. Bxh6 $2 Qxc2#) 23... Qxd4 24. fxg6 Qxd5 $16) 21... Rbc8 {[%emt 0:00:30]} 22. Rh2 {[%emt 0:00:30]} ({Weaker is} 22. Qxe7 Bb5 (22... Bxd4 $2 23. Bxd4 Qxc2+ 24. Ka1 $18) 23. Qe3 Rfe8 $16) 22... Rfe8 $2 {[%emt 0:00:30]} (22... Be5) 23. fxg6 {[%emt 0:00:30]} e5 {[%emt 0:00:30]} 24. gxf7+ {[%emt 0:00:30]} Kxf7 {[%emt 0:00:30] [#]} 25. Qh7 $1 {[%emt 0:00:30]} Rg8 {[%emt 0:00:30]} (25... Qxd5 26. Rf2+) 26. Nf5 {[%emt 0:00:30]} Bxf5 {[%emt 0:00:30]} 27. Qxf5+ {[%emt 0:00:30]} Bf6 {[%emt 0:00:30] Black is weak on the light squares} 28. Rf1 {[%emt 0:00:30] Intending Qe6+ and mate.} Rg6 {[%emt 0:00:30]} 29. Rhf2 {[%emt 0:00:30]} (29. h4 $142) 29... Kg7 {[%emt 0:00:30][%cal Bf7g7,Bg7g8,Bg8h7][%mdl 32]} 30. Qd7+ {[%emt 0:00:30] White mates.} Kg8 {[%emt 0:00:30]} 31. Qe6+ {[%emt 0:00:30]} (31. Rxf6 $2 {too greedy.} Qxc2+ 32. Ka1 Rxf6 $19) 31... Kh7 {[%emt 0:00:30]} 32. Rxf6 {[%emt 0:00:30]} Kg7 {[%emt 0:00:30] [#]} 33. R6f2 $2 {[%emt 0:00:30] Weighted Error Value: White=0.23 (precise) /Black=0.67.  Loses game:     	---       	Black=1      Mistake:       	White=2     	Black=4      Inaccurate:     	White=2     	Black=2      OK:         	White=6     	Black=2      Best:        	White=1     	Black=1} 1-0

[Event "3rd Rio Open 2024"]
[Site "Rio de Janeiro"]
[Date "2024.04.28"]
[Round "8.1"]
[White "Fier, Alexandr"]
[Black "Hoffman, Alejandro"]
[Result "1/2-1/2"]
[ECO "C24"]
[WhiteElo "2566"]
[BlackElo "2379"]
[Annotator "TA"]
[PlyCount "110"]
[EventDate "2024.04.12"]
[EventType "swiss"]
[EventCountry "BRA"]
[SourceTitle "playchess.com"]
[Source "ChessBase"]
[SourceQuality "1"]
[TimeControl "5400+30"]

{[%evp 25,110,22,20,17,17,0,0,-7,13,9,54,21,32,17,6,0,7,-10,-16,-8,-10,-56,0,0,0,0,0,0,32,30,16,24,30,26,70,67,54,68,38,42,43,20,23,20,32,32,103,103,103,103,103,122,141,145,146,147,145,133,141,0,118,122,133,95,106,99,99,8,8,8,8,8,8,0,0,0,0,0,0,0,0,0,0,0,8,8,8]} 1. e4 {[%emt 0:00:03]} e5 {[%emt 0:00:11]} 2. Bc4 {[%emt 0:00:16]} Nf6 {[%emt 0:00:30]} 3. d3 {[%emt 0:00:03]} c6 {[%emt 0:00:37]} 4. Nf3 {[%emt 0:00:04]} Be7 {[%emt 0:01:29]} 5. O-O {[%emt 0:00:37]} d6 {[%emt 0:00:11]} 6. Re1 {[%emt 0:01:43]} O-O {[%emt 0:00:09]} 7. Bb3 {[%emt 0:00:02]} a5 {[%emt 0:04:57] C24: Bishop's Opening: 2...Nf6.} 8. c3 {[%emt 0:00:05]} b5 {[%emt 0:00:17]} 9. a4 {[%emt 0:01:34]} Nbd7 {[%emt 0:01:29]} 10. d4 {[%emt 0:00:11]} Qc7 {[%emt 0:00:30]} 11. Nbd2 {[%emt 0:02:48]} Nb6 {[%emt 0:03:09]} 12. axb5 {[%emt 0:01:47]} cxb5 {[%emt 0:00:09]} 13. Nf1 {[%emt 0:00:03]} a4 {[%emt 0:01:16]} 14. Bc2 {[%emt 0:00:14]} Re8 {[%emt 0:16:17]} 15. Ng3 {[%emt 0:00:07]} h6 $146 {[%emt 0:01:06]} ({Predecessor:} 15... Nc4 16. b3 Nb6 17. bxa4 Nxa4 18. Bxa4 Bd7 19. Nf5 Rxa4 20. Rxa4 bxa4 21. Nxe7+ Rxe7 {0-1 Henderson de la Fuente,A (1998)-Perez Garcia,A (2328) ESP-ch U16 Granada 2016 (6)}) 16. Nh4 {[%emt 0:00:42]} Bg4 {[%emt 0:14:30]} 17. Qd3 {[%emt 0:00:25]} Qc4 {[%emt 0:00:23]} 18. Nhf5 {[%emt 0:00:42]} Bf8 {[%emt 0:03:40]} 19. Qe3 {[%emt 0:06:16]} exd4 {[%emt 0:05:43]} 20. Nxd4 {[%emt 0:03:05]} Qc5 {[%emt 0:00:52]} 21. Ndf5 {[%emt 0:10:26]} Qxe3 {[%emt 0:04:17]} 22. Bxe3 {[%emt 0:04:19]} Nc4 {[%emt 0:00:30]} 23. Bd4 {[%emt 0:00:02]} (23. Bd3 $11) 23... Bxf5 {[%emt 0:07:45]} (23... Nxb2 $15 24. h3 Bxf5 25. Nxf5 a3) 24. Nxf5 $11 {[%emt 0:00:05]} Nxb2 {[%emt 0:00:36]} 25. Bxf6 {[%emt 0:04:26]} (25. Ne3 $5) 25... gxf6 {[%emt 0:00:07]} 26. Ne3 {[%emt 0:00:02]} Ra7 {[%emt 0:03:42]} 27. Reb1 {[%emt 0:00:20]} Nc4 {[%emt 0:01:34]} (27... a3 $2 28. Rxb2 f5 29. Rxb5 $18 (29. exf5 axb2 30. Rxa7 d5 $18)) 28. Nd5 {[%emt 0:00:04]} Rb8 {[%emt 0:02:40]} 29. Bd3 {[%emt 0:05:00]} Rab7 {[%emt 0:01:14]} 30. Bxc4 $1 {[%emt 0:00:37]} bxc4 {[%emt 0:00:08]} 31. Rxb7 $1 {[%emt 0:00:04]} (31. Nxf6+ Kg7 32. Nh5+ Kh7 33. Rxb7 Rxb7 $11) 31... Rxb7 {[%emt 0:00:05]} 32. g4 {[%emt 0:00:02]} Ra7 {[%emt 0:01:14]} 33. Ra3 {[%emt 0:00:03]} h5 {[%emt 0:08:27]} 34. h3 {[%emt 1:01:13]} (34. Nxf6+ Kh8 35. Nxh5 d5 $17) 34... hxg4 {[%emt 0:00:07]} 35. hxg4 {[%emt 0:00:00]} ({Don't play} 35. Nxf6+ Kg7 36. Nd5 gxh3 $15) 35... Be7 {[%emt 0:05:49] [#]} ({Black should try} 35... Kh7 $14) 36. f3 $1 $16 {[%emt 0:00:00]} Bd8 {[%emt 0:00:07]} 37. Kf2 {[%emt 0:00:00]} Kf8 {[%emt 0:00:11]} 38. Ke3 {[%emt 0:00:00]} Ke8 {[%emt 0:00:10]} 39. Kd4 {[%emt 0:00:00]} Kd7 {[%emt 0:00:05]} 40. Kxc4 {[%emt 0:00:00]} Kc6 {[%emt 0:00:07]} 41. Ra2 {[%emt 0:00:00]} Ra8 {[%emt 0:00:47]} 42. Ra3 {[%emt 0:00:00]} Ra7 $1 {[%emt 0:00:22]} 43. Nb4+ {[%emt 0:00:00]} Kb6 {[%emt 0:00:07]} 44. Nd3 {[%emt 0:00:00]} Be7 {[%emt 0:07:11]} 45. Ra2 {[%emt 0:00:00]} Rc7+ {[%emt 0:02:20] [#]} 46. Kd4 {[%emt 0:00:00]} (46. Kd5 $1 $16) 46... f5 $1 $11 {[%emt 0:01:12]} 47. Rxa4 {[%emt 0:00:00]} Bf6+ {[%emt 0:01:45]} 48. Ke3 {[%emt 0:00:00]} fxg4 {[%emt 0:00:11]} 49. c4 {[%emt 0:00:00]} gxf3 {[%emt 0:00:16]} 50. Kxf3 {[%emt 0:00:00]} Bd4 {[%emt 0:01:27]} 51. Rb4+ {[%emt 0:00:00]} Kc6 {[%emt 0:00:08]} 52. Rb5 {[%emt 0:00:00]} Kd7 {[%emt 0:01:21]} 53. Rd5 {[%emt 0:00:00]} Rxc4 {[%emt 0:00:23]} 54. e5 {[%emt 0:00:00]} Bxe5 {[%emt 0:00:16]} 55. Rxe5 {[%emt 0:00:00]} (55. Nxe5+ Ke6 56. Nxc4 Kxd5 57. Ne3+ Kd4) 55... dxe5 {[%emt 0:00:06]} 1/2-1/2